[Event "*** Titled Tuesday Blitz"]
[Site "Chess.com"]
[Date "2020.10.20"]
[Round "5"]
[White "davigator"]
[Black "Pertinhez76"]
[Result "1-0"]
[WhiteElo "2348"]
[BlackElo "2145"]
[TimeControl "180+1"]
[EndTime "10:55:45 PDT"]
[Termination "davigator won by checkmate"]

1. e4 {[%clk 0:03:00.9]} 1... e6 {[%clk 0:02:59.3]} 2. d4 {[%clk 0:03:00.2]}
2... d5 {[%clk 0:02:58.9]} 3. Nc3 {[%clk 0:03:00.5]} 3... Nf6 {[%clk 0:02:57.6]}
4. e5 {[%clk 0:03:00.6]} 4... Nfd7 {[%clk 0:02:57.8]} 5. f4 {[%clk 0:03:00.4]}
5... c5 {[%clk 0:02:58]} 6. Nf3 {[%clk 0:03:00.8]} 6... Nc6 {[%clk 0:02:58]} 7.
Be3 {[%clk 0:03:00.8]} 7... Be7 {[%clk 0:02:57.6]} 8. Qd2 {[%clk 0:03:00.1]}
8... O-O {[%clk 0:02:55.8]} 9. dxc5 {[%clk 0:03:00.2]} 9... Nxc5 {[%clk
0:02:52.1]} 10. O-O-O {[%clk 0:03:00]} 10... a6 {[%clk 0:02:52.3]} 11. Qf2
{[%clk 0:02:57.5]} 11... b6 {[%clk 0:02:41.7]} 12. h4 {[%clk 0:02:53.9]} 12...
Qc7 {[%clk 0:02:41.1]} 13. h5 {[%clk 0:02:53.2]} 13... Kh8 {[%clk 0:02:18]} 14.
Rh3 {[%clk 0:02:48.1]} 14... Bb7 {[%clk 0:02:11.6]} 15. Rg3 {[%clk 0:02:42.5]}
15... Rac8 {[%clk 0:02:07.8]} 16. Kb1 {[%clk 0:02:41]} 16... Nd7 {[%clk
0:01:48.6]} 17. Bd3 {[%clk 0:02:38.4]} 17... Nb4 {[%clk 0:01:38.4]} 18. Bd4
{[%clk 0:02:26.8]} 18... Nxd3 {[%clk 0:01:34.9]} 19. cxd3 {[%clk 0:02:19.5]}
19... Bc5 {[%clk 0:01:34.7]} 20. Qe3 {[%clk 0:02:12.3]} 20... b5 {[%clk
0:01:32.9]} 21. f5 {[%clk 0:02:06.7]} 21... Bxd4 {[%clk 0:01:16.4]} 22. Qxd4
{[%clk 0:02:02.6]} 22... b4 {[%clk 0:01:07.2]} 23. Qg4 {[%clk 0:02:01.6]} 23...
Rg8 {[%clk 0:01:05.6]} 24. fxe6 {[%clk 0:01:58.6]} 24... bxc3 {[%clk 0:00:58.1]}
25. Rc1 {[%clk 0:01:58.4]} 25... c2+ {[%clk 0:00:53]} 26. Ka1 {[%clk 0:01:58.5]}
26... Nxe5 {[%clk 0:00:44.8]} 27. Nxe5 {[%clk 0:01:47.1]} 27... Qxe5 {[%clk
0:00:45.7]} 28. exf7 {[%clk 0:01:46.9]} 28... Rgf8 {[%clk 0:00:45.2]} 29. h6
{[%clk 0:01:46.9]} 29... g6 {[%clk 0:00:43.4]} 30. d4 {[%clk 0:01:46.7]} 30...
Qe4 {[%clk 0:00:28.7]} 31. Qg5 {[%clk 0:01:26.8]} 31... Rxf7 {[%clk 0:00:27.6]}
32. Rf3 {[%clk 0:01:23.9]} 32... Rxf3 {[%clk 0:00:25.2]} 33. gxf3 {[%clk
0:01:22.2]} 33... Qf5 {[%clk 0:00:25.8]} 34. Qe7 {[%clk 0:01:20.6]} 34... Bc6
{[%clk 0:00:22.4]} 35. Qg7# {[%clk 0:01:19.9]} 1-0

[Event "*** Titled Tuesday Blitz"]
[Site "Chess.com"]
[Date "2020.10.20"]
[Round "5"]
[White "joppie2"]
[Black "keepitcoming"]
[Result "1-0"]
[WhiteElo "2867"]
[BlackElo "2624"]
[TimeControl "180+1"]
[EndTime "10:55:50 PDT"]
[Termination "joppie2 won by resignation"]

1. e4 {[%clk 0:02:56.5]} 1... c6 {[%clk 0:02:58.2]} 2. d4 {[%clk 0:02:56.4]}
2... d5 {[%clk 0:02:51.6]} 3. e5 {[%clk 0:02:55.5]} 3... Bf5 {[%clk 0:02:50.7]}
4. Nf3 {[%clk 0:02:54.9]} 4... e6 {[%clk 0:02:50.7]} 5. Be2 {[%clk 0:02:55.4]}
5... c5 {[%clk 0:02:51]} 6. O-O {[%clk 0:02:54.3]} 6... Nc6 {[%clk 0:02:50.7]}
7. c3 {[%clk 0:02:54.5]} 7... Bg4 {[%clk 0:02:48.1]} 8. Be3 {[%clk 0:02:54.1]}
8... cxd4 {[%clk 0:02:46.5]} 9. cxd4 {[%clk 0:02:55]} 9... Nge7 {[%clk
0:02:45.4]} 10. Nc3 {[%clk 0:02:53.1]} 10... Nf5 {[%clk 0:02:44]} 11. h3 {[%clk
0:02:52.4]} 11... Bxf3 {[%clk 0:02:40.9]} 12. Bxf3 {[%clk 0:02:53.3]} 12... Be7
{[%clk 0:02:39]} 13. Bg4 {[%clk 0:02:51]} 13... Nxe3 {[%clk 0:02:25.3]} 14. fxe3
{[%clk 0:02:51.9]} 14... O-O {[%clk 0:02:25.4]} 15. a3 {[%clk 0:02:51.1]} 15...
Rc8 {[%clk 0:02:21.1]} 16. Qd3 {[%clk 0:02:50.3]} 16... g6 {[%clk 0:01:29.3]}
17. b4 {[%clk 0:02:46.3]} 17... Bg5 {[%clk 0:01:26.7]} 18. Ra2 {[%clk
0:02:44.5]} 18... b6 {[%clk 0:01:22]} 19. Nb5 {[%clk 0:02:41.8]} 19... Be7
{[%clk 0:01:16.5]} 20. Raf2 {[%clk 0:02:42.3]} 20... Qd7 {[%clk 0:01:04.4]} 21.
Nc3 {[%clk 0:02:34.2]} 21... a5 {[%clk 0:00:58.4]} 22. b5 {[%clk 0:02:31.6]}
22... Na7 {[%clk 0:00:58.6]} 23. a4 {[%clk 0:02:32.5]} 23... Bb4 {[%clk
0:00:53.6]} 24. Ne2 {[%clk 0:02:31.7]} 24... Rc7 {[%clk 0:00:50.5]} 25. Nf4
{[%clk 0:02:31.9]} 25... Rc3 {[%clk 0:00:46]} 26. Qe2 {[%clk 0:02:31.5]} 26...
Rfc8 {[%clk 0:00:43.3]} 27. Nxe6 {[%clk 0:02:11.4]} 27... fxe6 {[%clk
0:00:37.9]} 28. Rf6 {[%clk 0:02:12]} 28... Re8 {[%clk 0:00:32.2]} 29. Qf3 {[%clk
0:02:12.5]} 29... Rc7 {[%clk 0:00:25.9]} 30. h4 {[%clk 0:02:02]} 30... Qg7
{[%clk 0:00:20.8]} 31. Bxe6+ {[%clk 0:02:01.1]} 31... Kh8 {[%clk 0:00:19.9]} 32.
Bxd5 {[%clk 0:02:01.6]} 32... Nc8 {[%clk 0:00:11.2]} 33. Bc6 {[%clk 0:01:58]}
33... Rd8 {[%clk 0:00:09]} 34. d5 {[%clk 0:01:58.2]} 34... Be7 {[%clk
0:00:04.3]} 35. d6 {[%clk 0:01:49.6]} 35... Nxd6 {[%clk 0:00:03]} 36. exd6
{[%clk 0:01:50.5]} 36... Bxd6 {[%clk 0:00:03.3]} 37. Kh1 {[%clk 0:01:40.5]}
37... Re8 {[%clk 0:00:02.8]} 38. Rxd6 {[%clk 0:01:40.2]} 1-0

[Event "*** Titled Tuesday Blitz"]
[Site "Chess.com"]
[Date "2020.10.20"]
[Round "5"]
[White "Illingworth"]
[Black "Kildepiotr"]
[Result "1/2-1/2"]
[WhiteElo "2892"]
[BlackElo "2667"]
[TimeControl "180+1"]
[EndTime "10:55:58 PDT"]
[Termination "Game drawn by repetition"]

1. Nf3 {[%clk 0:03:00.9]} 1... g6 {[%clk 0:02:59.5]} 2. d4 {[%clk 0:02:59.9]}
2... Bg7 {[%clk 0:02:59.9]} 3. e4 {[%clk 0:03:00]} 3... c6 {[%clk 0:02:59.5]} 4.
Nbd2 {[%clk 0:02:56.2]} 4... d5 {[%clk 0:02:57]} 5. Bd3 {[%clk 0:02:56.4]} 5...
Bg4 {[%clk 0:02:55.7]} 6. c3 {[%clk 0:02:56.4]} 6... Nd7 {[%clk 0:02:49]} 7. h3
{[%clk 0:02:48.7]} 7... Bxf3 {[%clk 0:02:48.4]} 8. Nxf3 {[%clk 0:02:36.7]} 8...
dxe4 {[%clk 0:02:38.2]} 9. Bxe4 {[%clk 0:02:37.6]} 9... e5 {[%clk 0:02:38.2]}
10. O-O {[%clk 0:02:34.4]} 10... Ngf6 {[%clk 0:02:35]} 11. Bc2 {[%clk
0:02:31.8]} 11... exd4 {[%clk 0:02:21.9]} 12. Re1+ {[%clk 0:02:31.9]} 12... Kf8
{[%clk 0:02:22.3]} 13. Qxd4 {[%clk 0:02:22.8]} 13... Nd5 {[%clk 0:02:13.9]} 14.
Qa4 {[%clk 0:01:54.4]} 14... h6 {[%clk 0:02:04.9]} 15. Qa3+ {[%clk 0:01:52.5]}
15... Kg8 {[%clk 0:02:04.7]} 16. Bd2 {[%clk 0:01:50.5]} 16... Kh7 {[%clk
0:02:02.9]} 17. Rad1 {[%clk 0:01:48.7]} 17... Re8 {[%clk 0:01:58.5]} 18. h4
{[%clk 0:01:46.8]} 18... Rxe1+ {[%clk 0:01:51.2]} 19. Rxe1 {[%clk 0:01:46.8]}
19... N7f6 {[%clk 0:01:50.3]} 20. Ne5 {[%clk 0:01:45.1]} 20... Qc7 {[%clk
0:01:43.1]} 21. c4 {[%clk 0:01:33.9]} 21... Nb6 {[%clk 0:01:40]} 22. Qg3 {[%clk
0:00:56.4]} 22... Kg8 {[%clk 0:01:35.9]} 23. Nxg6 {[%clk 0:00:51.1]} 23... Qxg3
{[%clk 0:01:34.1]} 24. Ne7+ {[%clk 0:00:51.1]} 24... Kf8 {[%clk 0:01:34.4]} 25.
fxg3 {[%clk 0:00:51.2]} 25... Nxc4 {[%clk 0:01:25.9]} 26. Bc3 {[%clk 0:00:41.8]}
26... Re8 {[%clk 0:01:24.8]} 27. Bb4 {[%clk 0:00:39.6]} 27... a5 {[%clk
0:01:22.9]} 28. Bc5 {[%clk 0:00:34.6]} 28... b6 {[%clk 0:01:22.6]} 29. Ng6+
{[%clk 0:00:23.5]} 29... Kg8 {[%clk 0:01:21.8]} 30. Rxe8+ {[%clk 0:00:22.8]}
30... Nxe8 {[%clk 0:01:22.7]} 31. Ne7+ {[%clk 0:00:22.5]} 31... Kf8 {[%clk
0:01:05.3]} 32. Ng6+ {[%clk 0:00:22.2]} 32... Kg8 {[%clk 0:01:05.4]} 33. Ne7+
{[%clk 0:00:22.7]} 33... Kf8 {[%clk 0:01:05.8]} 34. Ng6+ {[%clk 0:00:23]} 34...
Kg8 {[%clk 0:01:06]} 1/2-1/2

[Event "*** Titled Tuesday Blitz"]
[Site "Chess.com"]
[Date "2020.10.20"]
[Round "5"]
[White "alejanchess73"]
[Black "tylityli"]
[Result "1/2-1/2"]
[WhiteElo "2438"]
[BlackElo "2235"]
[TimeControl "180+1"]
[EndTime "10:56:00 PDT"]
[Termination "Game drawn by repetition"]

1. e4 {[%clk 0:03:00.9]} 1... e5 {[%clk 0:02:45.5]} 2. Nf3 {[%clk 0:02:54.9]}
2... Nc6 {[%clk 0:02:44.3]} 3. Bb5 {[%clk 0:02:54.6]} 3... a6 {[%clk 0:02:42]}
4. Bxc6 {[%clk 0:02:54.6]} 4... dxc6 {[%clk 0:02:40.8]} 5. O-O {[%clk
0:02:55.5]} 5... Ne7 {[%clk 0:02:38.3]} 6. d4 {[%clk 0:02:53.8]} 6... exd4
{[%clk 0:02:23.8]} 7. Nxd4 {[%clk 0:02:53.6]} 7... c5 {[%clk 0:02:21.8]} 8. Nb3
{[%clk 0:02:53.5]} 8... Qxd1 {[%clk 0:02:21]} 9. Rxd1 {[%clk 0:02:54.4]} 9...
Be6 {[%clk 0:02:20]} 10. Nxc5 {[%clk 0:02:53.3]} 10... Bc8 {[%clk 0:02:20.2]}
11. Nc3 {[%clk 0:02:49.4]} 11... b6 {[%clk 0:02:19.3]} 12. Nd3 {[%clk
0:02:45.4]} 12... Bb7 {[%clk 0:02:17.1]} 13. Bf4 {[%clk 0:02:38.6]} 13... O-O-O
{[%clk 0:02:15]} 14. f3 {[%clk 0:02:38.8]} 14... f6 {[%clk 0:02:12.7]} 15. a4
{[%clk 0:02:34]} 15... Ng6 {[%clk 0:02:02.2]} 16. Bg3 {[%clk 0:02:29.6]} 16...
Bd6 {[%clk 0:01:49.1]} 17. Bxd6 {[%clk 0:02:27.3]} 17... Rxd6 {[%clk 0:01:48.7]}
18. Nf2 {[%clk 0:02:25.8]} 18... Rhd8 {[%clk 0:01:47.7]} 19. Rxd6 {[%clk
0:02:24.9]} 19... Rxd6 {[%clk 0:01:48.5]} 20. Rd1 {[%clk 0:02:24.2]} 20... Re6
{[%clk 0:01:43.2]} 21. b3 {[%clk 0:02:11.3]} 21... Rc6 {[%clk 0:01:33.6]} 22.
Nd5 {[%clk 0:01:58.7]} 22... Rxc2 {[%clk 0:01:30.6]} 23. g3 {[%clk 0:01:56.3]}
23... Bxd5 {[%clk 0:01:27.6]} 24. Rxd5 {[%clk 0:01:53.2]} 24... Rb2 {[%clk
0:01:18.3]} 25. Rd3 {[%clk 0:01:52.8]} 25... Ne5 {[%clk 0:01:17.6]} 26. Rc3
{[%clk 0:01:53.3]} 26... Kb7 {[%clk 0:01:14.7]} 27. f4 {[%clk 0:01:52.8]} 27...
Nd7 {[%clk 0:01:13.2]} 28. Nd3 {[%clk 0:01:48.6]} 28... Rd2 {[%clk 0:01:12.4]}
29. h4 {[%clk 0:01:43.6]} 29... h5 {[%clk 0:01:11.4]} 30. Kf1 {[%clk 0:01:42.7]}
30... a5 {[%clk 0:01:09.6]} 31. Ke1 {[%clk 0:01:40.8]} 31... Rg2 {[%clk
0:01:08.7]} 32. Nf2 {[%clk 0:01:39.3]} 32... Nc5 {[%clk 0:01:08.2]} 33. Re3
{[%clk 0:01:33.1]} 33... Rg1+ {[%clk 0:01:01.1]} 34. Ke2 {[%clk 0:01:33.2]}
34... Rb1 {[%clk 0:00:58.6]} 35. e5 {[%clk 0:01:33.7]} 35... fxe5 {[%clk
0:00:56]} 36. Rxe5 {[%clk 0:01:31]} 36... g6 {[%clk 0:00:52.6]} 37. Rg5 {[%clk
0:01:24.7]} 37... Rb2+ {[%clk 0:00:49.6]} 38. Kf3 {[%clk 0:01:23.3]} 38... Rxb3+
{[%clk 0:00:39.4]} 39. Kg2 {[%clk 0:01:21.5]} 39... Rb2 {[%clk 0:00:37.2]} 40.
Kf3 {[%clk 0:01:17.3]} 40... Rb3+ {[%clk 0:00:36.3]} 41. Kg2 {[%clk 0:01:17]}
41... Rb2 {[%clk 0:00:35.8]} 42. Kf3 {[%clk 0:01:17.2]} 42... Rb3+ {[%clk
0:00:34.9]} 1/2-1/2

[Event "*** Titled Tuesday Blitz"]
[Site "Chess.com"]
[Date "2020.10.20"]
[Round "5"]
[White "Duhless"]
[Black "GM_Levan_Pantsulaia"]
[Result "1-0"]
[WhiteElo "3019"]
[BlackElo "2853"]
[TimeControl "180+1"]
[EndTime "10:56:01 PDT"]
[Termination "Duhless won by resignation"]

1. d4 {[%clk 0:03:00.9]} 1... Nf6 {[%clk 0:02:45]} 2. Nf3 {[%clk 0:02:58.7]}
2... c5 {[%clk 0:02:44.7]} 3. c3 {[%clk 0:02:54.4]} 3... b6 {[%clk 0:02:41.5]}
4. dxc5 {[%clk 0:02:52.3]} 4... bxc5 {[%clk 0:02:41.3]} 5. e4 {[%clk 0:02:52.8]}
5... Nc6 {[%clk 0:02:34.6]} 6. e5 {[%clk 0:02:46.6]} 6... Ng4 {[%clk 0:02:32.5]}
7. Bf4 {[%clk 0:02:47.1]} 7... Qb6 {[%clk 0:02:11.7]} 8. Nbd2 {[%clk 0:02:33.8]}
8... c4 {[%clk 0:01:59.2]} 9. Bg3 {[%clk 0:02:19.5]} 9... Qxb2 {[%clk
0:01:58.3]} 10. Bxc4 {[%clk 0:02:11.5]} 10... Qxc3 {[%clk 0:01:52.3]} 11. O-O
{[%clk 0:02:03.7]} 11... Nh6 {[%clk 0:01:46.5]} 12. Rc1 {[%clk 0:02:01.7]} 12...
Qa5 {[%clk 0:01:45.6]} 13. Nb3 {[%clk 0:01:59]} 13... Qd8 {[%clk 0:01:39.9]} 14.
e6 {[%clk 0:01:53.8]} 14... fxe6 {[%clk 0:01:35]} 15. Nbd4 {[%clk 0:01:49.9]}
15... Nxd4 {[%clk 0:01:25.9]} 16. Nxd4 {[%clk 0:01:49.3]} 16... Qb6 {[%clk
0:01:13.5]} 17. Nb5 {[%clk 0:01:30.4]} 17... d6 {[%clk 0:01:09.1]} 18. Nc7+
{[%clk 0:01:25.3]} 18... Qxc7 {[%clk 0:01:09.4]} 19. Bb5+ {[%clk 0:01:25]} 19...
Qd7 {[%clk 0:01:10]} 20. Qa4 {[%clk 0:01:16.1]} 20... Qxb5 {[%clk 0:01:05.9]}
21. Qxb5+ {[%clk 0:01:16]} 21... Bd7 {[%clk 0:01:04.1]} 22. Qb7 {[%clk
0:01:15.5]} 22... Rd8 {[%clk 0:01:04]} 23. Rc7 {[%clk 0:01:11.6]} 23... e5
{[%clk 0:00:54.4]} 24. Bxe5 {[%clk 0:00:50.6]} 24... Nf7 {[%clk 0:00:47.5]} 25.
Ba1 {[%clk 0:00:48.9]} 25... e5 {[%clk 0:00:46]} 26. f4 {[%clk 0:00:47.5]} 26...
Be7 {[%clk 0:00:40.5]} 27. fxe5 {[%clk 0:00:46.8]} 27... Nxe5 {[%clk 0:00:39.5]}
28. Bxe5 {[%clk 0:00:42.8]} 28... dxe5 {[%clk 0:00:40.4]} 29. Rd1 {[%clk
0:00:40.6]} 1-0

[Event "*** Titled Tuesday Blitz"]
[Site "Chess.com"]
[Date "2020.10.20"]
[Round "5"]
[White "grandcoach"]
[Black "Agoking701"]
[Result "0-1"]
[WhiteElo "2133"]
[BlackElo "2345"]
[TimeControl "180+1"]
[EndTime "10:56:08 PDT"]
[Termination "Agoking701 won on time"]

1. e4 {[%clk 0:03:00.9]} 1... c6 {[%clk 0:02:56.5]} 2. d4 {[%clk 0:02:59.9]}
2... d5 {[%clk 0:02:55.1]} 3. e5 {[%clk 0:03:00.5]} 3... c5 {[%clk 0:02:49.7]}
4. dxc5 {[%clk 0:02:58.8]} 4... Nc6 {[%clk 0:02:46.6]} 5. Nf3 {[%clk 0:02:58.8]}
5... Bg4 {[%clk 0:02:41.5]} 6. a3 {[%clk 0:02:59.2]} 6... e6 {[%clk 0:02:39.1]}
7. b4 {[%clk 0:02:54.3]} 7... Nxe5 {[%clk 0:02:36.9]} 8. Bb2 {[%clk 0:02:41.9]}
8... Nc6 {[%clk 0:02:23]} 9. h3 {[%clk 0:02:09.1]} 9... Bh5 {[%clk 0:02:11.9]}
10. Be2 {[%clk 0:01:48.5]} 10... Nf6 {[%clk 0:02:06]} 11. Nc3 {[%clk 0:01:32.1]}
11... Be7 {[%clk 0:02:01.9]} 12. O-O {[%clk 0:01:27.8]} 12... O-O {[%clk
0:02:01.8]} 13. Nb5 {[%clk 0:01:18]} 13... a5 {[%clk 0:01:57.2]} 14. Nbd4 {[%clk
0:00:48.2]} 14... Ne4 {[%clk 0:01:31.8]} 15. b5 {[%clk 0:00:42.5]} 15... Nxd4
{[%clk 0:01:30.1]} 16. Nxd4 {[%clk 0:00:41.4]} 16... Bxe2 {[%clk 0:01:29.2]} 17.
Qxe2 {[%clk 0:00:41.6]} 17... Bxc5 {[%clk 0:01:28.3]} 18. Rad1 {[%clk
0:00:31.5]} 18... Qb6 {[%clk 0:01:26]} 19. c4 {[%clk 0:00:26]} 19... Nf6 {[%clk
0:01:20.9]} 20. Nb3 {[%clk 0:00:22]} 20... Be7 {[%clk 0:01:15.9]} 21. c5 {[%clk
0:00:19.3]} 21... Qc7 {[%clk 0:01:10.1]} 22. b6 {[%clk 0:00:15.8]} 22... Qc6
{[%clk 0:01:07.3]} 23. Rc1 {[%clk 0:00:03.7]} 23... Rfc8 {[%clk 0:01:06.5]} 24.
Nd4 {[%clk 0:00:03.7]} 24... Qd7 {[%clk 0:01:06.7]} 25. Nf3 {[%clk 0:00:02.1]}
25... Rxc5 {[%clk 0:01:04.6]} 26. Ne5 {[%clk 0:00:01.3]} 26... Qc8 {[%clk
0:01:00.9]} 0-1

[Event "*** Titled Tuesday Blitz"]
[Site "Chess.com"]
[Date "2020.10.20"]
[Round "5"]
[White "zmeeed67"]
[Black "Barmen_EV"]
[Result "0-1"]
[WhiteElo "2345"]
[BlackElo "2515"]
[TimeControl "180+1"]
[EndTime "10:56:15 PDT"]
[Termination "Barmen_EV won on time"]

1. e4 {[%clk 0:03:00.9]} 1... c5 {[%clk 0:02:59.8]} 2. g3 {[%clk 0:03:00.6]}
2... Nc6 {[%clk 0:03:00.2]} 3. Bg2 {[%clk 0:03:00.1]} 3... g6 {[%clk 0:02:58.6]}
4. Ne2 {[%clk 0:02:59.9]} 4... Bg7 {[%clk 0:02:57.8]} 5. O-O {[%clk 0:02:59.9]}
5... h5 {[%clk 0:02:57.5]} 6. h4 {[%clk 0:02:58.4]} 6... Nf6 {[%clk 0:02:56.8]}
7. Nbc3 {[%clk 0:02:56.9]} 7... e6 {[%clk 0:02:48.5]} 8. a3 {[%clk 0:02:51.3]}
8... d5 {[%clk 0:02:48.2]} 9. exd5 {[%clk 0:02:51.1]} 9... Nxd5 {[%clk
0:02:48.8]} 10. Nxd5 {[%clk 0:02:49]} 10... exd5 {[%clk 0:02:49.7]} 11. Rb1
{[%clk 0:02:49.1]} 11... O-O {[%clk 0:02:48.6]} 12. d3 {[%clk 0:02:39.2]} 12...
Bg4 {[%clk 0:02:46.8]} 13. Qd2 {[%clk 0:02:33.2]} 13... Re8 {[%clk 0:02:44.6]}
14. Nf4 {[%clk 0:02:31.7]} 14... Ne5 {[%clk 0:02:42.1]} 15. f3 {[%clk
0:01:58.3]} 15... Bf5 {[%clk 0:02:41.6]} 16. Qf2 {[%clk 0:01:50.5]} 16... c4
{[%clk 0:02:37.5]} 17. dxc4 {[%clk 0:01:25]} 17... dxc4 {[%clk 0:02:38.4]} 18.
Be3 {[%clk 0:01:24.2]} 18... Qa5 {[%clk 0:02:24.2]} 19. Rbd1 {[%clk 0:01:20.7]}
19... Nc6 {[%clk 0:02:22.6]} 20. c3 {[%clk 0:01:18.4]} 20... Rad8 {[%clk
0:02:19]} 21. Rfe1 {[%clk 0:01:05.3]} 21... Qa4 {[%clk 0:02:17.9]} 22. Rxd8
{[%clk 0:01:00.6]} 22... Rxd8 {[%clk 0:02:18.8]} 23. Bc5 {[%clk 0:00:51.6]}
23... b6 {[%clk 0:02:10.6]} 24. Be3 {[%clk 0:00:49.9]} 24... Ne5 {[%clk
0:02:08.1]} 25. Bd4 {[%clk 0:00:41.6]} 25... Nd3 {[%clk 0:02:07.7]} 26. Nxd3
{[%clk 0:00:41.5]} 26... Bxd4 {[%clk 0:02:07.4]} 27. cxd4 {[%clk 0:00:38.5]}
27... cxd3 {[%clk 0:02:08.3]} 28. d5 {[%clk 0:00:24.5]} 28... Rxd5 {[%clk
0:02:06.1]} 29. f4 {[%clk 0:00:23.6]} 29... Rd8 {[%clk 0:02:06.1]} 30. Qd2
{[%clk 0:00:21.5]} 30... Qd4+ {[%clk 0:02:00.9]} 31. Kh2 {[%clk 0:00:20.5]}
31... Rc8 {[%clk 0:02:01.1]} 32. Re3 {[%clk 0:00:15]} 32... Rc2 {[%clk
0:01:59.2]} 33. Re8+ {[%clk 0:00:13.9]} 33... Kg7 {[%clk 0:01:58.3]} 34. Qe1
{[%clk 0:00:13.4]} 34... d2 {[%clk 0:01:47.3]} 35. Qe7 {[%clk 0:00:13.2]} 35...
d1=Q {[%clk 0:01:33.1]} 36. Qf8+ {[%clk 0:00:12.9]} 36... Kh7 {[%clk 0:01:32.9]}
37. Qg8+ {[%clk 0:00:12.2]} 37... Kh6 {[%clk 0:01:31.7]} 38. Qf8+ {[%clk
0:00:07.7]} 38... Qg7 {[%clk 0:01:31.4]} 0-1

[Event "*** Titled Tuesday Blitz"]
[Site "Chess.com"]
[Date "2020.10.20"]
[Round "5"]
[White "Caterpiller35"]
[Black "mshuaau0"]
[Result "1-0"]
[WhiteElo "2429"]
[BlackElo "2221"]
[TimeControl "180+1"]
[EndTime "10:56:16 PDT"]
[Termination "Caterpiller35 won by resignation"]

1. d4 {[%clk 0:03:00.9]} 1... d5 {[%clk 0:02:59.3]} 2. Bf4 {[%clk 0:02:59.1]}
2... e6 {[%clk 0:02:59.1]} 3. e3 {[%clk 0:02:58.7]} 3... Bd6 {[%clk 0:02:59.4]}
4. Bg3 {[%clk 0:02:53.8]} 4... Nf6 {[%clk 0:02:59.4]} 5. Nd2 {[%clk 0:02:53.4]}
5... c5 {[%clk 0:02:58.9]} 6. c3 {[%clk 0:02:53.4]} 6... Nc6 {[%clk 0:02:58.9]}
7. Bd3 {[%clk 0:02:52.8]} 7... O-O {[%clk 0:02:55.5]} 8. Ngf3 {[%clk 0:02:51.1]}
8... b6 {[%clk 0:02:55.2]} 9. Qe2 {[%clk 0:02:50.8]} 9... Bb7 {[%clk 0:02:52.3]}
10. e4 {[%clk 0:02:50.8]} 10... dxe4 {[%clk 0:02:51.5]} 11. Nxe4 {[%clk
0:02:51.7]} 11... Nxe4 {[%clk 0:02:44.1]} 12. Qxe4 {[%clk 0:02:51.6]} 12... g6
{[%clk 0:02:43.2]} 13. dxc5 {[%clk 0:02:40.6]} 13... Ne5 {[%clk 0:01:53.5]} 14.
Qxb7 {[%clk 0:02:30.1]} 14... Nxd3+ {[%clk 0:01:51.8]} 15. Ke2 {[%clk
0:02:23.1]} 15... Nxc5 {[%clk 0:01:23.6]} 16. Qc6 {[%clk 0:02:11.8]} 16... Bxg3
{[%clk 0:01:23.5]} 17. Rad1 {[%clk 0:02:10.5]} 17... Qc8 {[%clk 0:01:07.8]} 18.
Qxc8 {[%clk 0:02:09.5]} 18... Raxc8 {[%clk 0:01:08.7]} 19. hxg3 {[%clk
0:02:09.5]} 19... f6 {[%clk 0:01:02.2]} 20. Nd4 {[%clk 0:02:08.1]} 20... e5
{[%clk 0:00:58.3]} 21. Nb5 {[%clk 0:02:08]} 21... a6 {[%clk 0:00:57]} 22. Nd6
{[%clk 0:02:07.8]} 22... Rc6 {[%clk 0:00:56.9]} 23. Ke3 {[%clk 0:02:07.1]} 23...
Na4 {[%clk 0:00:51.2]} 24. Ne4 {[%clk 0:01:58.2]} 24... Nxb2 {[%clk 0:00:48.7]}
25. Rd7 {[%clk 0:01:57.9]} 25... Nc4+ {[%clk 0:00:48.6]} 26. Ke2 {[%clk
0:01:45.3]} 26... b5 {[%clk 0:00:47.5]} 27. Rhxh7 {[%clk 0:01:41.3]} 27... Rfc8
{[%clk 0:00:29.8]} 28. Rhf7 {[%clk 0:01:08.9]} 28... f5 {[%clk 0:00:18.8]} 29.
Nf6+ {[%clk 0:01:03.6]} 29... Rxf6 {[%clk 0:00:18.8]} 30. Rxf6 {[%clk
0:01:04.5]} 30... Na3 {[%clk 0:00:11.5]} 31. Rxg6+ {[%clk 0:01:04.1]} 31... Kf8
{[%clk 0:00:12]} 32. Rxa6 {[%clk 0:01:04.1]} 32... Rxc3 {[%clk 0:00:10.8]} 33.
Ra8+ {[%clk 0:01:03.1]} 1-0

[Event "*** Titled Tuesday Blitz"]
[Site "Chess.com"]
[Date "2020.10.20"]
[Round "5"]
[White "AttackSparrow"]
[Black "natelleka"]
[Result "1-0"]
[WhiteElo "2388"]
[BlackElo "2183"]
[TimeControl "180+1"]
[EndTime "10:56:18 PDT"]
[Termination "AttackSparrow won by resignation"]

1. e4 {[%clk 0:03:00.9]} 1... e5 {[%clk 0:03:00]} 2. Nc3 {[%clk 0:03:00.7]} 2...
Nf6 {[%clk 0:02:58.3]} 3. f4 {[%clk 0:02:57.7]} 3... d5 {[%clk 0:02:56.5]} 4.
fxe5 {[%clk 0:02:57.7]} 4... Nxe4 {[%clk 0:02:55.3]} 5. Qe2 {[%clk 0:02:58.2]}
5... Qh4+ {[%clk 0:02:52.6]} 6. g3 {[%clk 0:02:58.1]} 6... Nxg3 {[%clk
0:02:50.8]} 7. Qf2 {[%clk 0:02:58.4]} 7... Nf5 {[%clk 0:02:42.7]} 8. Qxh4 {[%clk
0:02:59.3]} 8... Nxh4 {[%clk 0:02:42.1]} 9. Nxd5 {[%clk 0:03:00]} 9... Kd8
{[%clk 0:02:32.7]} 10. d4 {[%clk 0:03:00]} 10... h6 {[%clk 0:02:25.8]} 11. Bh3
{[%clk 0:02:26.8]} 11... Bxh3 {[%clk 0:02:15.7]} 12. Nxh3 {[%clk 0:02:27.7]}
12... Nf3+ {[%clk 0:02:16]} 13. Kf2 {[%clk 0:02:26.3]} 13... Nxd4 {[%clk
0:02:13.6]} 14. Rd1 {[%clk 0:02:25.5]} 14... Bc5 {[%clk 0:02:12.9]} 15. Be3
{[%clk 0:02:22.9]} 15... Nxc2 {[%clk 0:01:42.2]} 16. Bxc5 {[%clk 0:02:21.3]}
16... Nxa1 {[%clk 0:01:42.5]} 17. Nb6+ {[%clk 0:02:20.8]} 17... Ke8 {[%clk
0:01:29.8]} 18. Nxa8 {[%clk 0:02:20.9]} 18... Na6 {[%clk 0:01:25.7]} 19. Nxc7+
{[%clk 0:01:57.8]} 19... Nxc7 {[%clk 0:01:23.8]} 20. Rxa1 {[%clk 0:01:58.4]}
20... b6 {[%clk 0:01:18.3]} 21. Bd6 {[%clk 0:01:58.7]} 21... Ne6 {[%clk
0:01:16.7]} 22. Ke3 {[%clk 0:01:52.8]} 22... Kd7 {[%clk 0:01:15.8]} 23. Rc1
{[%clk 0:01:51.5]} 23... Re8 {[%clk 0:01:08.9]} 24. Nf2 {[%clk 0:01:47.6]} 24...
f6 {[%clk 0:01:03.6]} 25. Nd3 {[%clk 0:01:42.9]} 25... fxe5 {[%clk 0:01:00.3]}
26. Bxe5 {[%clk 0:01:43.8]} 26... g5 {[%clk 0:00:46.7]} 27. Ke4 {[%clk 0:01:44]}
27... Rf8 {[%clk 0:00:38.7]} 28. Rc2 {[%clk 0:01:37.8]} 28... Rf1 {[%clk
0:00:35.4]} 29. Rf2 {[%clk 0:01:37.1]} 29... Rh1 {[%clk 0:00:28]} 30. Rf7+
{[%clk 0:01:36.1]} 30... Ke8 {[%clk 0:00:27.8]} 31. Rxa7 {[%clk 0:01:35.4]}
31... Rd1 {[%clk 0:00:22.9]} 32. Bf6 {[%clk 0:01:30.4]} 32... Nc5+ {[%clk
0:00:18]} 33. Nxc5 {[%clk 0:01:30.5]} 33... bxc5 {[%clk 0:00:17.5]} 34. Rh7
{[%clk 0:01:30.5]} 34... Re1+ {[%clk 0:00:15.2]} 35. Kd5 {[%clk 0:01:30.7]}
35... h5 {[%clk 0:00:11.6]} 36. Rxh5 {[%clk 0:01:28.3]} 36... Kf7 {[%clk
0:00:12.5]} 37. Bxg5 {[%clk 0:01:25.4]} 37... Kg6 {[%clk 0:00:13]} 38. Bd2
{[%clk 0:01:17.7]} 38... Rd1 {[%clk 0:00:12.1]} 39. Rg5+ {[%clk 0:01:18]} 39...
Kf6 {[%clk 0:00:09.4]} 40. Rg2 {[%clk 0:01:18.9]} 40... Kf5 {[%clk 0:00:09.6]}
41. Rf2+ {[%clk 0:01:19.1]} 41... Kg4 {[%clk 0:00:09.3]} 42. Kxc5 {[%clk
0:01:20]} 1-0